bitfinex/quotes_BTCUSD_20240101
["timestamp","ask_amount","ask_price","bid_price","bid_amount"]
[1704130212679,0.46742,42788.0,42787.0,0.0698]
[1704130216402,0.46742,42788.0,42787.0,0.30301711]
[1704130228549,0.46742,42788.0,42787.0,0.30501711]
[1704130228753,0.46742,42788.0,42787.0,0.30601711]
[1704130229748,0.02848461,42794.0,42791.0,0.0698]
[1704130229950,0.467377,42792.0,42791.0,0.0698]
[1704130231684,0.934754,42792.0,42791.0,0.0698]
[1704130237784,0.934754,42792.0,42791.0,0.30301711]
[1704130237785,0.467377,42792.0,42791.0,0.30301711]
[1704130237990,0.52307907,42803.0,42798.0,0.0698]
[1704130237991,0.1874,42802.0,42798.0,0.0698]
[1704130238225,0.1874,42802.0,42800.0,0.0698]
[1704130238436,0.467258,42803.0,42800.0,0.0698]
[1704130238892,0.467258,42803.0,42792.0,0.44297866]
[1704130238893,0.467258,42803.0,42799.0,0.0698]
[1704130239125,0.467258,42803.0,42798.0,0.0698]
[1704130239337,0.4673,42799.0,42798.0,0.0698]
[1704130240393,0.4673,42799.0,42798.0,0.001]
[1704130241062,0.4673,42799.0,42798.0,0.0708]
[1704130241480,0.4673,42799.0,42798.0,0.0698]
[1704130245863,0.21512216,42804.0,42798.0,0.0698]
[1704130246081,0.4673,42799.0,42798.0,0.0698]
[1704130247180,0.4673,42799.0,42798.0,0.0708]
[1704130248444,0.4673,42799.0,42798.0,0.0698]
[1704130249340,0.9346,42799.0,42798.0,0.0698]
[1704130263331,0.8646,42799.0,42798.0,0.0698]
[1704130267814,0.8646,42799.0,42794.0,0.0698]
[1704130267815,1.3319,42799.0,42794.0,0.0698]
[1704130268037,0.467344,42795.0,42794.0,0.0698]
[1704130268243,0.934688,42795.0,42794.0,0.0698]
[1704130268463,0.934688,42795.0,42792.0,0.2258]
[1704130268464,0.934688,42795.0,42793.0,0.0698]
[1704130268680,0.467313,42798.0,42791.0,0.0698]
[1704130268681,0.93471,42794.0,42791.0,0.0698]
[1704130268895,0.93471,42794.0,42789.0,0.71437276]
[1704130268896,0.467366,42793.0,42792.0,0.0698]
[1704130269118,0.934732,42793.0,42792.0,0.0698]
[1704130269533,0.467366,42793.0,42792.0,0.0698]
[1704130270624,0.467366,42793.0,42791.0,0.0698]
[1704130270845,0.467366,42793.0,42791.0,0.0748]
[1704130271068,0.467366,42793.0,42791.0,0.005]
[1704130271310,0.934754,42792.0,42788.0,0.0698]
[1704130271711,0.934754,42792.0,42786.0,0.2072]
[1704130271712,0.467355,42794.0,42791.0,0.007]
[1704130271962,0.467355,42794.0,42791.0,0.015]
[1704130272166,0.467355,42794.0,42791.0,0.007]
[1704130272315,0.46739,42791.0,42788.0,0.0698]
[1704130272509,0.467366,42793.0,42788.0,0.0698]
[1704130272772,0.467409,42789.0,42788.0,0.0698]
[1704130277516,0.187,42793.0,42788.0,0.0698]
[1704130277924,0.02746955,42794.0,42788.0,0.0698]
[1704130278138,0.13054404,42801.0,42788.0,0.0698]
[1704130278139,0.1933,42796.0,42788.0,0.0698]
[1704130278360,0.023,42795.0,42788.0,0.0698]
[1704130278968,0.123,42795.0,42788.0,0.0698]
[1704130279982,0.123,42795.0,42788.0,0.0708]
[1704130280682,0.123,42795.0,42788.0,0.0698]
[1704130280914,0.123,42795.0,42788.0,0.0708]
[1704130282786,0.123,42795.0,42789.0,0.2081]
[1704130284038,0.123,42795.0,42789.0,0.2091]
[1704130289744,0.35621711,42795.0,42789.0,0.001]
[1704130289966,0.35621711,42795.0,42782.0,0.0698]
[1704130289967,0.1,42788.0,42782.0,0.0698]
[1704130290394,0.023,42787.0,42782.0,0.0698]
[1704130290606,0.023,42787.0,42781.0,0.0738]
[1704130290819,0.023,42787.0,42781.0,0.004]
[1704130291213,0.023,42787.0,42782.0,0.0698]
[1704130292791,0.024,42787.0,42782.0,0.0698]
[1704130295615,0.024,42787.0,42783.0,0.2239]
[1704130296025,0.001,42787.0,42783.0,0.2239]
[1704130296666,0.023,42789.0,42783.0,0.2239]
[1704130296873,0.001,42787.0,42783.0,0.2239]
[1704130297716,0.001,42787.0,42786.0,0.0698]
[1704130298360,0.01,42791.0,42786.0,0.0698]
[1704130298780,0.004,42789.0,42786.0,0.0698]
[1704130299611,0.004,42789.0,42787.0,0.0698]
[1704130299838,0.3,42792.0,42789.0,0.0698]
[1704130300023,0.006,42791.0,42789.0,0.0698]
[1704130301374,0.01,42794.0,42789.0,0.0698]
[1704130301584,0.3,42794.0,42789.0,0.0698]
[1704130301831,0.31,42794.0,42789.0,0.0698]
[1704130302672,0.319,42794.0,42789.0,0.0708]
[1704130302884,0.006,42791.0,42789.0,0.0708]
[1704130303308,0.319,42794.0,42789.0,0.0708]
[1704130305066,0.327,42794.0,42789.0,0.0718]
[1704130305713,0.318,42794.0,42789.0,0.0708]
[1704130306147,0.006,42791.0,42789.0,0.0708]
[1704130306589,0.318,42794.0,42789.0,0.0708]
[1704130306806,0.327,42794.0,42789.0,0.0718]
[1704130307230,0.31,42794.0,42789.0,0.0698]
[1704130307439,0.006,42791.0,42789.0,0.0698]
[1704130307680,0.012,42791.0,42789.0,0.0698]
[1704130307882,0.006,42791.0,42789.0,0.0698]
[1704130308088,0.006,42791.0,42789.0,0.0708]
[1704130308293,0.934796,42790.0,42789.0,0.0708]
[1704130309140,0.934796,42790.0,42789.0,0.0718]
[1704130309343,0.934796,42790.0,42789.0,0.0708]
[1704130309577,0.934796,42790.0,42789.0,0.0698]
[1704130309787,0.939796,42790.0,42789.0,0.0698]
[1704130310184,0.944796,42790.0,42789.0,0.0698]
[1704130310820,0.934818,42789.0,42786.0,0.0698]
[1704130311034,0.467431,42787.0,42786.0,0.0698]
[1704130312633,0.934862,42787.0,42786.0,0.0698]
[1704130312815,0.935862,42787.0,42786.0,0.0698]
[1704130313517,0.935862,42787.0,42783.0,0.2239]
[1704130313735,0.934928,42784.0,42783.0,0.2239]
[1704130315221,0.001,42787.0,42783.0,0.2239]
[1704130315492,0.934928,42784.0,42783.0,0.2239]
[1704130315911,0.934928,42784.0,42783.0,0.2269]
[1704130316367,0.934928,42784.0,42783.0,0.2309]
[1704130317712,0.934928,42784.0,42783.0,0.3007]
[1704130317713,0.467464,42784.0,42783.0,0.3007]
[1704130318577,0.467464,42784.0,42783.0,0.53391711]
[1704130318754,0.01,42791.0,42787.0,0.0698]
[1704130319174,0.01,42791.0,42788.0,0.2106]
[1704130319428,0.467409,42789.0,42788.0,0.2804]
[1704130320499,0.934818,42789.0,42788.0,0.2804]
[1704130321546,0.938818,42789.0,42788.0,0.2804]
[1704130321972,0.941818,42789.0,42788.0,0.2804]
[1704130323269,0.007,42789.0,42788.0,0.2804]
[1704130323486,0.941818,42789.0,42788.0,0.2804]
[1704130323711,0.871818,42789.0,42788.0,0.2804]
[1704130325033,0.404409,42789.0,42788.0,0.2804]
[1704130325240,0.404409,42789.0,42788.0,0.51361711]
[1704130326515,0.407409,42789.0,42788.0,0.51661711]
[1704130326732,0.407409,42789.0,42788.0,0.51361711]
[1704130327144,0.407409,42789.0,42788.0,0.51761711]
[1704130327773,0.404409,42789.0,42788.0,0.51761711]
[1704130328190,0.404409,42789.0,42788.0,0.52161711]
[1704130333790,0.404409,42789.0,42788.0,0.2884]
[1704130334040,0.871818,42789.0,42788.0,0.2884]
[1704130334677,0.871818,42789.0,42788.0,0.2844]
[1704130334887,0.871818,42789.0,42788.0,0.2804]
[1704130335093,0.874818,42789.0,42788.0,0.2804]
[1704130335295,0.877818,42789.0,42788.0,0.2804]
[1704130335717,0.877818,42789.0,42786.0,0.0698]
[1704130335903,0.410409,42789.0,42787.0,0.0698]
[1704130336101,0.46742,42788.0,42787.0,0.0698]
[1704130337128,0.46742,42788.0,42784.0,0.2771]
[1704130337555,0.46742,42788.0,42784.0,0.2073]
[1704130337762,0.46742,42788.0,42786.0,0.0698]
[1704130337966,0.467431,42787.0,42786.0,0.0698]
[1704130339195,0.934862,42787.0,42784.0,0.2159]
[1704130339412,0.467453,42785.0,42782.0,0.0698]
[1704130339621,0.467453,42785.0,42781.0,0.004]
[1704130339622,0.467475,42783.0,42781.0,0.004]
[1704130339819,0.567453,42785.0,42781.0,0.004]
[1704130339820,0.467486,42782.0,42781.0,0.004]
[1704130340628,0.934972,42782.0,42781.0,0.004]
[1704130341482,0.934972,42782.0,42781.0,0.011]
[1704130341668,0.934972,42782.0,42781.0,0.017]
[1704130342028,0.934972,42782.0,42781.0,0.011]
[1704130342236,0.467486,42782.0,42781.0,0.0878]
[1704130342445,0.467486,42782.0,42781.0,0.32101711]
[1704130346584,0.467486,42782.0,42781.0,0.36883711]
[1704130346801,0.467486,42782.0,42781.0,0.32101711]
[1704130349660,0.467486,42782.0,42781.0,0.42101711]
[1704130350036,0.467486,42782.0,42781.0,0.52516987]
[1704130354044,0.404409,42789.0,42788.0,0.0698]
[1704130354263,0.1887,42795.0,42793.0,0.0698]
[1704130354478,0.46734,42796.0,42795.0,0.0698]
[1704130354697,0.1887,42798.0,42796.0,0.0698]
[1704130354947,0.01,42794.0,42778.0,0.05603348]
[1704130355187,0.1,42774.0,42770.0,0.10062326]
[1704130355386,0.467606,42771.0,42770.0,0.10062326]
[1704130355630,0.56089285,42771.0,42770.0,0.00701426]
[1704130355850,0.56089285,42771.0,42770.0,0.24023137]
[1704130356069,0.56089285,42771.0,42770.0,0.34023137]
[1704130356295,0.09328685,42771.0,42770.0,0.24023137]
[1704130356513,0.1887,42779.0,42770.0,0.24023137]
[1704130356731,0.467606,42771.0,42770.0,0.00701426]
[1704130357579,0.541386,42771.0,42770.0,0.00701426]
[1704130358423,0.524526,42771.0,42770.0,0.00701426]
[1704130358858,0.471606,42771.0,42770.0,0.00701426]
[1704130359275,0.523926,42771.0,42770.0,0.00701426]
[1704130363810,0.548406,42771.0,42770.0,0.00701426]
[1704130364430,0.529686,42771.0,42770.0,0.00701426]
[1704130366393,0.558366,42771.0,42770.0,0.00701426]
[1704130367781,1.125512,42771.0,42770.0,0.00701426]
[1704130367976,1.038752,42771.0,42770.0,0.00701426]
[1704130368173,1.138472,42771.0,42770.0,0.00701426]
[1704130369477,1.706078,42771.0,42765.0,0.02882]
[1704130369667,0.467661,42766.0,42765.0,0.02882]
[1704130370019,0.662661,42766.0,42765.0,0.02882]
[1704130370267,1.130322,42766.0,42765.0,0.02882]
[1704130370698,1.130322,42766.0,42765.0,0.03282]
[1704130371362,1.032822,42766.0,42765.0,0.03282]
[1704130371549,1.032822,42766.0,42765.0,0.02882]
[1704130371753,1.037822,42766.0,42765.0,0.02882]
[1704130371957,1.041822,42766.0,42765.0,0.02882]
[1704130375309,1.041822,42766.0,42761.0,0.03282]
[1704130375519,0.467704,42762.0,42761.0,0.03282]
[1704130375935,0.520804,42762.0,42761.0,0.03282]
[1704130377429,0.467704,42762.0,42761.0,0.03282]
[1704130377587,0.526084,42762.0,42761.0,0.03282]
[1704130377789,0.526084,42762.0,42761.0,0.03382]
[1704130378201,0.526084,42762.0,42761.0,0.03482]
[1704130381109,0.526084,42762.0,42761.0,0.006]
[1704130383726,0.456084,42762.0,42761.0,0.006]
[1704130384619,0.397704,42762.0,42761.0,0.006]
[1704130384838,0.397704,42762.0,42761.0,0.23921711]
[1704130385937,0.06582,42769.0,42761.0,0.23921711]
[1704130386148,0.06582,42769.0,42762.0,0.23321711]
[1704130386360,0.467672,42765.0,42762.0,0.44681711]
[1704130387009,0.467683,42764.0,42762.0,0.44681711]
[1704130387435,0.467683,42764.0,42762.0,0.44781711]
[1704130387647,0.467683,42764.0,42762.0,0.44681711]
[1704130388931,0.467683,42764.0,42762.0,0.44881711]
[1704130389833,0.467683,42764.0,42762.0,0.45081711]
[1704130390229,0.467683,42764.0,42762.0,0.44881711]
[1704130390472,0.467683,42764.0,42762.0,0.55381711]
[1704130390668,0.06126,42770.0,42763.0,0.1]
[1704130390669,0.467655,42767.0,42763.0,0.1]
[1704130390877,0.06126,42770.0,42764.0,0.23321711]
[1704130390878,0.467662,42766.0,42764.0,0.23321711]
[1704130392182,0.467662,42766.0,42764.0,0.23521711]
[1704130393268,0.06126,42770.0,42768.0,0.1]
[1704130393471,0.06,42782.0,42769.0,0.23321711]
[1704130393472,0.46759,42773.0,42769.0,0.23321711]
[1704130394569,0.003,42770.0,42769.0,0.23321711]
[1704130395665,0.51541,42773.0,42769.0,0.23321711]
[1704130395914,0.46759,42773.0,42769.0,0.23821711]
[1704130396164,0.46759,42773.0,42769.0,0.23921711]
[1704130396599,0.51667,42773.0,42769.0,0.23921711]
[1704130396832,0.467617,42770.0,42769.0,0.23921711]
[1704130397056,0.06966,42772.0,42769.0,0.23421711]
[1704130397509,0.22434,42779.0,42769.0,0.23421711]
[1704130397726,0.0504,42771.0,42769.0,0.23421711]
[1704130398180,0.467617,42770.0,42769.0,0.23921711]
[1704130398394,0.467617,42770.0,42769.0,0.23421711]
[1704130398620,0.513037,42770.0,42769.0,0.23421711]
[1704130398816,0.467617,42770.0,42769.0,0.23421711]
[1704130399023,0.467617,42770.0,42769.0,0.23821711]
[1704130400293,0.08058,42775.0,42769.0,0.24121711]
[1704130400505,0.467617,42770.0,42769.0,0.23821711]
[1704130400938,0.467617,42770.0,42769.0,0.24321711]
[1704130401163,0.467617,42770.0,42769.0,0.23821711]
[1704130402156,0.467617,42770.0,42769.0,0.24321711]
[1704130402637,0.525457,42770.0,42769.0,0.23821711]
[1704130403415,0.525457,42770.0,42769.0,0.23321711]
[1704130403587,0.525457,42770.0,42769.0,0.23521711]
[1704130403776,0.525457,42770.0,42769.0,0.23721711]
[1704130404424,0.525457,42770.0,42769.0,0.004]
[1704130411301,0.525457,42770.0,42769.0,0.23721711]
[1704130411302,0.467617,42770.0,42769.0,0.23721711]
[1704130412889,0.514871,42773.0,42769.0,0.23721711]
[1704130413223,0.467591,42773.0,42770.0,0.23321711]
[1704130413687,0.467591,42773.0,42770.0,0.44861711]
[1704130414404,0.471591,42773.0,42770.0,0.44861711]
[1704130414664,0.469591,42773.0,42770.0,0.44861711]
[1704130415423,0.471591,42773.0,42770.0,0.44861711]
[1704130415651,0.467591,42773.0,42770.0,0.44861711]
[1704130415846,0.467591,42773.0,42770.0,0.44961711]
[1704130416692,0.0681,42778.0,42770.0,0.44961711]
[1704130416812,0.467595,42772.0,42770.0,0.44961711]
[1704130417461,0.467595,42772.0,42770.0,0.44861711]
[1704130417874,0.467595,42772.0,42770.0,0.45061711]
[1704130418082,0.467595,42772.0,42770.0,0.45261711]
[1704130422158,0.467606,42771.0,42770.0,0.45261711]
[1704130423027,0.467606,42771.0,42770.0,0.45061711]
[1704130423454,0.467606,42771.0,42770.0,0.45361711]
[1704130424268,0.467606,42771.0,42770.0,0.45161711]
[1704130424478,0.467606,42771.0,42770.0,0.45461711]
[1704130425555,0.529166,42771.0,42770.0,0.006]
[1704130425773,0.996772,42771.0,42770.0,0.006]
[1704130426389,0.996772,42771.0,42770.0,0.003]
[1704130426601,0.997772,42771.0,42770.0,0.003]
[1704130427361,1.138772,42771.0,42770.0,0.003]
[1704130427558,1.037492,42771.0,42770.0,0.003]
[1704130427794,1.137992,42771.0,42763.0,0.6584]
[1704130427994,0.670386,42771.0,42764.0,0.23321711]
[1704130428194,0.467629,42769.0,42764.0,0.23321711]
[1704130428391,0.467672,42765.0,42764.0,0.23321711]
[1704130429024,0.524012,42765.0,42764.0,0.23321711]
[1704130429591,0.524012,42765.0,42764.0,0.23521711]
[1704130429811,0.524012,42765.0,42764.0,0.24121711]
[1704130430241,0.05634,42765.0,42764.0,0.24121711]
[1704130430662,0.467672,42765.0,42764.0,0.24121711]
[1704130430846,0.525512,42765.0,42764.0,0.24121711]
[1704130431101,0.467672,42765.0,42764.0,0.24121711]
[1704130431748,0.467672,42765.0,42764.0,0.23321711]
[1704130431953,0.468672,42765.0,42764.0,0.24421711]
[1704130432149,0.467672,42765.0,42764.0,0.23621711]
[1704130432283,0.467672,42765.0,42764.0,0.23921711]
[1704130433602,0.526712,42765.0,42764.0,0.006]
[1704130433746,0.05904,42765.0,42764.0,0.006]
[1704130434378,0.0855,42769.0,42764.0,0.006]
[1704130434597,0.467672,42765.0,42764.0,0.006]
[1704130434817,0.467672,42765.0,42764.0,0.003]
[1704130435033,0.520932,42765.0,42764.0,0.003]
[1704130435203,0.468672,42765.0,42762.0,0.27543348]
[1704130435414,0.08632,42769.0,42763.0,0.05603348]
[1704130435613,0.06492,42767.0,42763.0,0.05603348]
[1704130435819,0.467663,42766.0,42763.0,0.05603348]
[1704130435991,0.467683,42764.0,42763.0,0.05603348]
[1704130436169,0.002,42765.0,42762.0,0.50865059]
[1704130436381,0.467694,42763.0,42762.0,0.45261711]
[1704130437653,0.525654,42763.0,42761.0,0.004]
[1704130437851,0.467704,42762.0,42761.0,0.23721711]
[1704130438047,0.519424,42762.0,42761.0,0.23721711]
[1704130439339,0.519424,42762.0,42761.0,0.24021711]
[1704130439487,0.519424,42762.0,42761.0,0.004]
[1704130439716,0.08502,42762.0,42761.0,0.004]
[1704130440105,0.11304,42766.0,42761.0,0.004]
[1704130440106,0.22758,42766.0,42761.0,0.004]
[1704130440301,0.22758,42766.0,42761.0,0.007]
[1704130440507,0.467704,42762.0,42761.0,0.007]
[1704130440941,0.547924,42762.0,42761.0,0.007]
[1704130441412,0.547924,42762.0,42761.0,0.004]
[1704130442490,0.547924,42762.0,42761.0,0.005]
[1704130442491,0.649864,42762.0,42761.0,0.005]
[1704130443863,0.579864,42762.0,42761.0,0.004]
[1704130444493,0.581864,42762.0,42761.0,0.004]
[1704130444703,1.051568,42762.0,42761.0,0.004]
[1704130446603,0.458284,42762.0,42761.0,0.004]
[1704130448293,0.004,42762.0,42761.0,0.23721711]
[1704130449539,0.002,42762.0,42761.0,0.23721711]
[1704130449808,0.467658,42767.0,42761.0,0.23721711]
[1704130450012,0.002,42762.0,42761.0,0.004]
[1704130450445,0.002,42762.0,42761.0,0.007]
[1704130450672,0.05802,42766.0,42761.0,0.007]
[1704130450868,0.525681,42766.0,42761.0,0.007]
[1704130451460,0.04794,42765.0,42761.0,0.007]
[1704130451664,0.04794,42765.0,42761.0,0.004]
[1704130452012,0.467661,42766.0,42761.0,0.004]
[1704130452221,0.467661,42766.0,42762.0,0.23321711]
[1704130452446,0.001,42765.0,42762.0,0.23321711]
[1704130452907,0.002,42766.0,42762.0,0.23321711]
[1704130453118,0.467694,42763.0,42762.0,0.23321711]
[1704130453320,0.467694,42763.0,42761.0,0.004]
[1704130453533,0.467704,42762.0,42761.0,0.23721711]
[1704130453953,0.525244,42762.0,42761.0,0.23721711]
[1704130454355,0.467704,42762.0,42761.0,0.23721711]
[1704130454569,0.522964,42762.0,42761.0,0.23921711]
[1704130455410,0.467704,42762.0,42761.0,0.24221711]
[1704130455628,0.521044,42762.0,42761.0,0.24221711]
[1704130455845,0.467704,42762.0,42761.0,0.24021711]
[1704130456053,0.467704,42762.0,42761.0,0.23721711]
[1704130456264,0.467704,42762.0,42761.0,0.24021711]
[1704130456694,0.467704,42762.0,42761.0,0.23721711]
[1704130456900,0.467704,42762.0,42761.0,0.23821711]
[1704130466942,0.05706,42767.0,42761.0,0.23821711]
[1704130467384,0.467704,42762.0,42761.0,0.23821711]
[1704130468014,0.467704,42762.0,42761.0,0.23721711]
[1704130469089,0.467704,42762.0,42761.0,0.28492711]
[1704130470177,0.467704,42762.0,42761.0,0.28392711]
[1704130470591,0.06432,42769.0,42761.0,0.28392711]
[1704130470824,0.467704,42762.0,42761.0,0.004]
[1704130471002,0.467704,42762.0,42761.0,0.05571]
[1704130471477,0.467704,42762.0,42761.0,0.05771]
[1704130471896,0.467704,42762.0,42761.0,0.28892711]
[1704130472330,0.467704,42762.0,42761.0,0.29392711]
[1704130478722,0.06432,42769.0,42761.0,0.29392711]
[1704130478927,0.467654,42767.0,42763.0,0.04671]
[1704130479154,0.06432,42769.0,42764.0,0.23321711]
[1704130479362,0.467644,42768.0,42764.0,0.23321711]
[1704130479545,0.467672,42765.0,42764.0,0.23321711]
[1704130481177,0.467672,42765.0,42764.0,0.23311711]
[1704130481397,0.467672,42765.0,42764.0,0.23411711]
[1704130482005,0.521612,42765.0,42764.0,0.23411711]
[1704130482167,0.05394,42765.0,42764.0,0.23411711]
[1704130482358,0.521612,42765.0,42764.0,0.23411711]
[1704130482799,0.467672,42765.0,42764.0,0.001]
[1704130483041,0.532772,42765.0,42764.0,0.001]
[1704130487582,0.467672,42765.0,42764.0,0.001]
[1704130488796,0.521612,42765.0,42764.0,0.001]
[1704130489579,0.989284,42765.0,42764.0,0.001]
[1704130491031,0.935344,42765.0,42764.0,0.001]
[1704130493237,0.467672,42765.0,42764.0,0.001]
[1704130494061,0.467672,42765.0,42764.0,0.23421711]
[1704130498835,0.521612,42765.0,42764.0,0.001]
[1704130502254,0.467672,42765.0,42764.0,0.001]
[1704130503885,0.07698,42769.0,42764.0,0.001]
[1704130504108,0.00698,42769.0,42764.0,0.001]
[1704130504540,0.05952,42769.0,42764.0,0.001]
[1704130504777,0.467672,42765.0,42764.0,0.001]
[1704130505481,0.467672,42765.0,42762.0,0.04671]
[1704130505695,0.467672,42765.0,42763.0,0.23321711]
[1704130505928,0.467683,42764.0,42763.0,0.23321711]
[1704130506142,0.514963,42764.0,42763.0,0.23321711]
[1704130506361,0.467683,42764.0,42763.0,0.23321711]
[1704130507603,0.467683,42764.0,42763.0,0.002]
[1704130508259,0.467683,42764.0,42763.0,0.004]
[1704130508704,0.467683,42764.0,42763.0,0.002]
[1704130508829,0.467683,42764.0,42761.0,0.004]
[1704130509080,0.467704,42762.0,42761.0,0.23721711]
[1704130511321,0.468704,42762.0,42761.0,0.23721711]
[1704130511992,0.469704,42762.0,42761.0,0.23721711]
[1704130512777,0.469704,42762.0,42761.0,0.004]
[1704130513177,0.523344,42762.0,42761.0,0.004]
[1704130514006,0.991048,42762.0,42761.0,0.004]
[1704130514864,1.458752,42762.0,42761.0,0.004]
[1704130516411,1.405112,42762.0,42761.0,0.004]
[1704130516648,0.937408,42762.0,42761.0,0.23721711]
[1704130516875,0.002,42762.0,42761.0,0.81114541]
[1704130517092,0.002,42762.0,42761.0,0.77609844]
[1704130517531,0.001,42762.0,42761.0,0.77609844]
[1704130518228,0.467634,42769.0,42767.0,0.04671]
[1704130518459,0.467634,42769.0,42768.0,0.27992711]
[1704130519760,0.467634,42769.0,42768.0,0.28592711]
[1704130520625,0.467626,42770.0,42768.0,0.29192711]
[1704130520845,0.467628,42769.0,42768.0,0.29192711]
[1704130521474,0.467628,42769.0,42768.0,0.27992711]
[1704130521685,0.467628,42769.0,42768.0,0.28492711]
[1704130521895,0.467628,42769.0,42768.0,0.28992711]
[1704130522105,0.467628,42769.0,42768.0,0.28492711]
[1704130522545,0.467628,42769.0,42768.0,0.27992711]
[1704130522751,0.467628,42769.0,42768.0,0.28592711]
[1704130523464,0.467628,42769.0,42768.0,0.29192711]
[1704130526030,0.55135087,42782.0,42771.0,0.04671]
[1704130526031,0.2345,42780.0,42771.0,0.04671]
[1704130526243,0.467577,42774.0,42772.0,0.23321711]
[1704130526455,0.477496,42782.0,42772.0,0.45551711]
[1704130526456,0.467586,42773.0,42772.0,0.45551711]
[1704130528570,0.467586,42773.0,42772.0,0.50222711]
[1704130529194,0.467586,42773.0,42772.0,0.50322711]
[1704130529623,0.467586,42773.0,42772.0,0.50222711]
[1704130530042,0.467586,42773.0,42772.0,0.50822711]
[1704130532180,0.467586,42773.0,42772.0,0.51844372]
[1704130532842,0.467586,42773.0,42772.0,0.61844372]
[1704130533051,0.467586,42773.0,42772.0,0.51844372]
[1704130540736,0.1983,42779.0,42772.0,0.51844372]
[1704130541076,0.467586,42773.0,42772.0,0.51844372]
[1704130541490,0.467586,42773.0,42772.0,0.50822711]
[1704130541690,0.467586,42773.0,42772.0,0.51418043]
[1704130542112,0.467586,42773.0,42772.0,0.51118043]
[1704130542743,0.467586,42773.0,42772.0,0.51418043]
[1704130543479,0.467586,42773.0,42772.0,0.51718043]
[1704130547346,0.467586,42773.0,42772.0,0.29488043]
[1704130554508,0.935172,42773.0,42772.0,0.06166332]
[1704130554875,0.935172,42773.0,42772.0,0.05271]
[1704130555079,0.935172,42773.0,42772.0,0.003]
[1704130555441,0.936172,42773.0,42772.0,0.003]
[1704130555840,0.935172,42773.0,42767.0,0.04671]
[1704130556220,0.469586,42773.0,42769.0,0.04671]
[1704130556423,0.467597,42772.0,42769.0,0.27992711]
[1704130556677,0.467617,42770.0,42769.0,0.27992711]
[1704130557875,0.467617,42770.0,42769.0,0.28292711]
[1704130558080,0.467617,42770.0,42769.0,0.04971]
[1704130558472,0.467617,42770.0,42769.0,0.05271]
[1704130562607,0.467617,42770.0,42769.0,0.04671]
[1704130562743,0.467617,42770.0,42766.0,0.04671]
[1704130562947,0.46765,42767.0,42766.0,0.27992711]
[1704130564319,0.39765,42767.0,42766.0,0.28292711]
[1704130565575,0.39765,42767.0,42766.0,0.28592711]
[1704130567356,0.46765,42767.0,42766.0,0.28592711]
[1704130569727,0.46765,42767.0,42766.0,0.29499963]
[1704130571509,0.467626,42770.0,42766.0,0.29499963]
[1704130571727,0.467626,42770.0,42767.0,0.50542711]
[1704130571969,0.467626,42770.0,42768.0,0.00906354]
[1704130572168,0.467626,42770.0,42769.0,0.23321711]
[1704130572473,0.467626,42770.0,42769.0,0.24227615]
[1704130572682,0.468626,42770.0,42769.0,0.24227615]
[1704130573236,0.469626,42770.0,42769.0,0.24227615]
[1704130573455,0.468626,42770.0,42769.0,0.24227615]
[1704130573687,0.467626,42770.0,42769.0,0.28898615]
[1704130573913,0.468626,42770.0,42769.0,0.28898615]
[1704130574344,0.469626,42770.0,42769.0,0.28898615]
[1704130575588,0.467626,42770.0,42769.0,0.28898615]
[1704130576019,0.467626,42770.0,42769.0,0.29198615]
[1704130576239,0.467626,42770.0,42769.0,0.49078679]
[1704130576446,0.467626,42770.0,42769.0,0.37310335]
[1704130576654,0.467626,42770.0,42769.0,0.29498615]
[1704130576833,0.467626,42770.0,42769.0,0.30098615]
[1704130577043,0.467626,42770.0,42769.0,0.35706531]
[1704130577250,0.1975,42779.0,42769.0,0.35706531]
[1704130577456,0.467542,42777.0,42769.0,0.35706531]
[1704130577672,0.467604,42772.0,42771.0,0.04671]
[1704130577888,0.467604,42772.0,42771.0,0.27992711]
[1704130578092,0.467604,42772.0,42771.0,0.28897024]
[1704130578948,0.467604,42772.0,42771.0,0.29197024]
[1704130579833,0.467604,42772.0,42771.0,0.29497024]
[1704130580853,0.467606,42772.0,42771.0,0.29497024]
[1704130585979,0.467606,42772.0,42771.0,0.30019381]
[1704130586229,0.467606,42772.0,42771.0,0.29613588]
[1704130592740,0.457606,42772.0,42771.0,0.29613588]
[1704130595963,0.457606,42772.0,42771.0,0.06291877]
[1704130597681,0.457606,42772.0,42771.0,0.05691877]
[1704130598058,0.457606,42772.0,42771.0,0.05791877]
[1704130598441,0.457606,42772.0,42771.0,0.05691877]
[1704130598688,0.457606,42772.0,42771.0,0.05791877]
[1704130599857,0.467606,42772.0,42771.0,0.05791877]
[1704130600258,0.467606,42772.0,42771.0,0.06099536]
[1704130602923,0.935212,42772.0,42771.0,0.06099536]
[1704130603347,0.467606,42772.0,42771.0,0.001]
[1704130603778,0.935212,42772.0,42771.0,0.01429248]
[1704130603996,0.935212,42772.0,42771.0,0.001]
[1704130604209,0.935212,42772.0,42771.0,0.01429248]
[1704130604416,0.935212,42772.0,42771.0,0.001]
[1704130604637,0.935212,42772.0,42771.0,0.01429248]
[1704130604904,0.935212,42772.0,42771.0,0.001]
[1704130605317,0.935212,42772.0,42771.0,0.01429248]
[1704130605560,0.935212,42772.0,42771.0,0.001]
[1704130605779,0.935212,42772.0,42771.0,0.01429248]
[1704130606000,0.935212,42772.0,42771.0,0.001]
[1704130606227,0.935212,42772.0,42771.0,0.01429248]
[1704130606450,0.467606,42772.0,42771.0,0.001]
[1704130606662,0.467606,42772.0,42771.0,0.01429248]
[1704130606908,0.467606,42772.0,42771.0,0.001]
[1704130607318,0.467606,42772.0,42771.0,0.01429248]